bitfinex-derivatives/quotes_SOLF0:USTF0_20251210
["timestamp","ask_amount","ask_price","bid_price","bid_amount"]
[1765392958025,6.5375,137.67,137.62,3.06]
[1765392958225,9.5975,137.67,137.62,3.06]
[1765392958732,3.06,137.67,137.62,3.06]
[1765392959122,0.0491513,137.66,137.63,0.04769496]
[1765392959321,0.0491513,137.66,137.63,3.10769496]
[1765392960438,0.0491513,137.66,137.64,6.5387]
[1765392960629,104.7639,137.73,137.65,3.06]
[1765392960928,104.7783,137.71,137.65,3.06]
[1765392961530,0.04591608,137.69,137.67,0.05096765]
[1765392961721,6.58251608,137.69,137.67,0.05096765]
[1765392961926,0.04591608,137.69,137.67,3.11096765]
[1765392962125,0.04591608,137.69,137.67,0.05096765]
[1765392963022,6.58271608,137.69,137.67,0.05096765]
[1765392963225,9.69271608,137.69,137.67,0.05096765]
[1765392963418,3.11,137.68,137.61,3.06]
[1765392963625,9.6482,137.66,137.61,3.06]
[1765392964528,0.04823739,137.65,137.62,0.04955458]
[1765392965536,6.58683739,137.65,137.62,0.04955458]
[1765392965729,0.04823739,137.65,137.62,0.04955458]
[1765392966132,101.732,137.62,137.5,101.8168]
[1765392966327,21.8,137.65,137.61,6.5402]
[1765392966530,6.5356,137.71,137.61,101.735]
[1765392966729,163.3836,137.74,137.61,101.735]
[1765392966730,61.74,137.74,137.64,101.713]
[1765392966936,61.74,137.74,137.63,101.7236]
[1765392967137,0.05274967,137.7,137.67,0.04939017]
[1765392969730,6.5368,137.69,137.6,6.5405]
[1765392969930,101.6752,137.7,137.6,6.5405]
[1765392970833,0.04770701,137.66,137.64,0.05299761]
[1765392972932,6.5348,137.73,137.64,0.05299761]
[1765392973131,6.5348,137.73,137.63,163.7188]
[1765392973739,101.6513,137.73,137.63,62.0]
[1765392974132,0.05275734,137.69,137.67,0.05140065]
[1765392975947,6.58935734,137.69,137.67,0.05140065]
[1765392976144,103.19785734,137.69,137.59,6.5408]
[1765392976337,5.43920924,137.68,137.59,6.5408]
[1765392976538,113.92562668,137.69,137.59,6.5408]
[1765392976846,6.5382,137.66,137.59,6.5408]
[1765392977235,0.04971197,137.64,137.61,0.05262114]
[1765392980643,0.04971197,137.64,137.61,6.59282114]
[1765392981142,6.58051928,137.72,137.63,101.7173]
[1765392981450,101.6356,137.75,137.64,73.98052668]
[1765392981650,101.6435,137.74,137.64,75.06045113]
[1765392981845,101.6435,137.74,137.64,61.74]
[1765392982041,6.5356,137.71,137.64,61.74]
[1765392982243,0.04830769,137.69,137.66,0.05347737]
[1765392983549,101.7042,137.66,137.57,13.32045113]
[1765392983742,101.7042,137.66,137.55,13.32045113]
[1765392983950,113.93682668,137.67,137.55,101.7824]
[1765392984143,113.93682668,137.67,137.55,115.10285113]
[1765392984344,6.5395,137.63,137.58,6.5416]
[1765392984543,0.0532715,137.62,137.59,0.05084871]
[1765392986146,0.0532715,137.62,137.59,6.59194871]
[1765392986856,0.0532715,137.62,137.59,0.05084871]
[1765392987343,6.5934715,137.62,137.59,0.05084871]
[1765392987746,12.29379818,137.62,137.59,0.05084871]
[1765392987944,6.5406,137.61,137.59,0.05084871]
[1765392988342,101.754,137.59,137.49,101.8264]
[1765392988651,101.7468,137.6,137.5,101.8201]
[1765392989056,101.7468,137.6,137.49,101.8264]
[1765392989257,0.04804767,137.56,137.53,0.05143892]
[1765392990058,175.70452668,137.66,137.53,101.84633892]
[1765392990251,101.7314,137.62,137.52,61.76]
[1765392990560,101.7401,137.61,137.52,61.76]
[1765392991158,101.80992645,137.58,137.55,0.04685891]
[1765392991358,6.5425,137.57,137.55,0.04685891]
[1765392991762,0.04852645,137.58,137.55,0.04685891]
[1765392992150,6.59072645,137.58,137.55,0.04685891]
[1765392992351,0.04852645,137.58,137.55,0.04685891]
[1765392992745,6.5424,137.57,137.55,0.04685891]
[1765392993762,0.04852645,137.58,137.55,0.04685891]
[1765392994356,6.5422,137.57,137.55,0.04685891]
[1765392997757,0.04852645,137.58,137.55,0.04685891]
[1765392998667,6.5424,137.57,137.55,0.04685891]
[1765392999053,175.83425313,137.58,137.45,61.76]
[1765392999255,6.5444,137.53,137.45,61.76]
[1765392999661,6.5438,137.54,137.48,6.5464]
[1765392999961,114.02122668,137.56,137.45,61.76]
[1765393000162,0.05109001,137.52,137.49,0.05506135]
[1765393001262,101.7545,137.59,137.49,0.05506135]
[1765393001462,101.7629,137.58,137.49,6.5456]
[1765393001757,101.7692,137.57,137.45,163.6136]
[1765393001964,101.7865,137.55,137.45,61.76]
[1765393002163,0.04607602,137.51,137.49,0.04783419]
[1765393003673,6.543,137.56,137.5,6.5455]
[1765393003968,163.5362,137.59,137.5,6.5455]
[1765393004163,163.5362,137.59,137.47,101.8405]
[1765393004362,101.7632,137.58,137.46,101.8496]
[1765393004563,101.7632,137.58,137.45,163.6135]
[1765393004564,101.7687,137.57,137.45,163.6135]
[1765393004779,0.0514244,137.52,137.5,0.05299701]
[1765393004962,0.05085846,137.52,137.5,0.05299701]
[1765393008476,101.8134,137.51,137.4,101.8907]
[1765393009173,101.8234,137.5,137.4,6.5502]
[1765393009363,0.04575265,137.46,137.44,0.05222564]
[1765393009566,0.04575265,137.46,137.39,61.8]
[1765393010473,0.04575265,137.46,137.41,0.05045754]
[1765393010876,6.5482,137.45,137.41,0.05045754]
[1765393011269,0.04575265,137.46,137.41,0.05045754]
[1765393011675,0.04575265,137.46,137.41,101.93525754]
[1765393011873,0.04575265,137.46,137.43,101.8717]
[1765393012176,0.04575265,137.46,137.41,101.93525754]
[1765393012177,0.04575265,137.46,137.41,0.05045754]
[1765393012580,0.04575265,137.46,137.41,101.93435754]
[1765393012772,0.04575265,137.46,137.41,0.05045754]
[1765393013968,0.04575265,137.46,137.41,68.60005754]
[1765393014680,0.04575265,137.46,137.41,6.60005754]
[1765393015679,0.04575265,137.46,137.41,0.05045754]
[1765393016476,6.5481,137.45,137.41,0.05045754]
[1765393016972,0.04575265,137.46,137.41,0.05045754]
[1765393017573,101.89905265,137.46,137.41,0.05045754]
[1765393017780,101.89905265,137.46,137.32,103.21669077]
[1765393017781,101.8974,137.4,137.32,1.26649077]
[1765393017985,101.9094,137.38,137.28,61.82]
[1765393018185,101.9094,137.38,137.29,1.26685961]
[1765393018186,101.9281,137.36,137.29,1.26685961]
[1765393018487,101.9336,137.35,137.24,163.8321]
[1765393018687,0.05558912,137.31,137.28,0.05318148]
[1765393019186,6.61048912,137.31,137.28,0.05318148]
[1765393019394,61.82,137.3,137.14,102.0842]
[1765393019581,102.0309,137.22,137.1,102.1162]
[1765393019781,102.0309,137.22,137.09,102.1204]
[1765393019982,114.27192668,137.22,137.1,102.1168]
[1765393020187,102.0469,137.2,137.08,108.6949]
[1765393020388,102.053,137.19,137.07,163.9556]
[1765393020592,0.05333935,137.15,137.13,0.0491106]
[1765393020995,12.24052668,137.19,137.13,0.0491106]
[1765393021190,0.04886748,137.15,137.13,0.0491106]
[1765393021388,102.0532,137.19,137.13,0.0491106]
[1765393021590,102.0928,137.14,137.02,102.1735]
[1765393021788,12.29145625,137.15,137.04,102.1574]
[1765393021789,12.24052668,137.15,137.04,102.1574]
[1765393021996,61.84,137.17,137.07,102.1357]
[1765393022195,102.0761,137.16,137.04,102.1585]
[1765393022392,102.0761,137.16,137.05,61.84]
[1765393022696,0.05193754,137.12,137.09,0.05141323]
[1765393024293,0.05193754,137.12,136.99,105.71315491]
[1765393024294,102.1111,137.11,136.99,105.71555491]
[1765393024597,102.1136,137.11,137.0,62.0]
[1765393024795,102.076,137.16,137.04,102.1569]
[1765393024988,102.0984,137.13,137.05,61.88]
[1765393025190,0.05031364,137.1,137.08,0.04862327]
[1765393025393,0.05031364,137.1,137.08,0.04983572]
[1765393026388,0.00031364,137.1,137.08,0.04983572]
[1765393027001,108.6189,137.18,137.08,0.04983572]
[1765393027302,102.0923,137.14,137.01,102.1809]
[1765393027502,102.0839,137.15,137.02,164.0739]
[1765393027803,108.6517,137.14,137.02,170.6421]
[1765393028002,0.05362337,137.09,137.07,0.05467781]
[1765393028202,0.0510556,137.09,137.07,0.05467781]
[1765393028599,102.1770556,137.09,137.0,1.26930863]
[1765393028801,102.1770556,137.09,136.89,6.5743]
[1765393028802,102.1884,137.01,136.89,6.5743]
[1765393029098,102.1884,137.01,136.68,102.4247]
[1765393029099,102.3513,136.79,136.68,102.4247]
[1765393029303,102.3822,136.75,136.62,102.4726]
[1765393029497,102.3648,136.77,136.65,102.4488]
[1765393029696,102.3573,136.78,136.7,0.05405109]
[1765393029994,102.33,136.82,136.7,102.4109]
[1765393030193,102.3064,136.85,136.73,102.3896]
[1765393030391,108.8676,136.87,136.73,102.3896]
[1765393030600,102.2857,136.88,136.75,102.3735]
[1765393030805,0.05475519,136.83,136.8,0.05000674]
[1765393031109,12.24052668,136.92,136.81,102.3332]
[1765393031406,12.24052668,136.91,136.8,102.3374]
[1765393031597,12.24052668,136.96,136.84,102.3075]
[1765393031792,12.24052668,136.93,136.82,102.3237]
[1765393031989,108.797,136.96,136.84,102.3083]
[1765393032195,0.04723224,136.91,136.89,0.04742414]
[1765393032396,0.04723224,136.91,136.89,0.04872871]
[1765393032397,0.04964149,136.91,136.89,0.04872871]
[1765393032611,114.44382668,136.99,136.89,0.04872871]
[1765393032899,7.1084226,137.02,136.91,102.2558]
[1765393033095,7.1084226,137.02,136.92,102.2469]
[1765393033304,109.2656226,137.05,136.94,102.2322]
[1765393033508,109.2656226,137.05,136.94,102.2333]
[1765393033805,0.04937122,137.01,136.98,0.05410289]
[1765393035305,109.2128226,137.12,136.99,204.3921]
[1765393035498,102.1044,137.12,137.01,102.1806]
[1765393035698,108.6618,137.13,137.02,102.1731]
[1765393035904,7.1084226,137.16,137.05,102.1499]
[1765393036099,109.1766226,137.17,137.04,102.1576]
[1765393036299,0.04638731,137.12,137.09,0.05064901]
[1765393036503,102.037,137.21,137.09,0.05064901]
[1765393036804,102.0216,137.23,137.1,109.2225226]
[1765393037010,102.0308,137.22,137.1,7.1084226]
[1765393037302,102.032,137.22,137.1,7.1084226]
[1765393037607,102.032,137.22,137.08,102.127]
[1765393037608,0.04948269,137.17,137.15,0.04755219]
[1765393037904,0.05010416,137.17,137.15,0.04755219]
[1765393038109,102.0014,137.26,137.15,8.61597479]
[1765393038311,101.9936,137.27,137.15,7.1084226]
[1765393038605,101.9936,137.27,137.16,62.0]
[1765393038805,101.9937,137.27,137.16,62.0]
[1765393039001,0.0549776,137.23,137.2,0.05567561]
[1765393039202,0.0549776,137.23,137.08,102.1309]
[1765393039203,102.0307,137.22,137.1,102.1136]
[1765393039797,102.0917,137.14,137.02,102.1697]
[1765393040109,102.0743,137.16,137.03,102.1658]
[1765393040407,0.05074048,137.11,137.08,0.05154218]
[1765393040611,0.04738174,137.11,137.08,0.05249965]
[1765393042009,0.04738174,137.11,136.98,102.203]
[1765393042010,102.1314,137.09,136.97,102.2106]
[1765393042206,102.1356,137.08,136.98,62.0]
[1765393042605,108.6875,137.1,136.98,62.0]
[1765393042810,102.1053,137.12,136.99,102.1948]
[1765393043007,0.05057069,137.07,137.04,0.05473438]
[1765393044710,0.05057069,137.07,136.95,123.67326439]
[1765393045012,102.1287,137.09,136.97,102.2109]
[1765393045215,102.1205,137.1,136.98,102.2039]
[1765393045410,102.0993,137.13,137.0,102.189]
[1765393045607,0.0493512,137.08,137.05,0.0468063]
[1765393045813,0.05040444,137.08,137.05,0.04733897]
[1765393046007,102.0621,137.18,137.05,164.19883897]
[1765393046320,108.6139,137.19,137.06,102.1435]
[1765393046515,102.0447,137.2,137.07,102.1361]
[1765393047012,0.04799978,137.15,137.12,0.04868075]
[1765393047203,102.0319,137.22,137.12,0.04868075]
[1765393047403,102.0319,137.22,137.1,102.1134]
[1765393047612,102.0238,137.23,137.11,102.1043]
[1765393048111,102.0316,137.22,137.11,6.5641]
[1765393048311,0.05303172,137.18,137.16,0.04745176]
[1765393048521,0.05571062,137.18,137.16,0.04745176]
[1765393049412,101.9857,137.28,137.17,102.0611]
[1765393049815,108.5295,137.3,137.19,108.6075]
[1765393050011,101.989,137.28,137.17,102.0622]
[1765393050210,101.9744,137.3,137.18,102.0549]
[1765393050416,0.04825268,137.25,137.23,0.04696928]
[1765393050728,0.04970327,137.25,137.23,0.04696928]
[1765393053023,101.9507,137.33,137.23,0.04696928]
[1765393053325,101.9507,137.33,137.21,108.5913]
[1765393053509,101.9244,137.36,137.24,102.0082]
[1765393053712,18.99559344,137.37,137.25,102.0015]
[1765393053912,0.0471894,137.32,137.3,0.04837389]
[1765393054112,0.05247268,137.32,137.3,0.04837389]
[1765393054925,6.5507,137.4,137.3,0.04837389]
[1765393055223,108.4454,137.4,137.27,101.9878]
[1765393055611,108.4454,137.4,137.29,6.5551]
[1765393055815,108.4246,137.43,137.31,101.9604]
[1765393056009,18.99559344,137.45,137.36,0.05364383]
[1765393056010,0.05544762,137.38,137.36,0.05364383]
[1765393056214,0.05494904,137.38,137.36,0.04792495]
[1765393057018,108.3899,137.47,137.36,6.60002495]
[1765393057219,108.3899,137.47,137.36,6.5521]
[1765393057516,108.4004,137.46,137.36,6.5521]
[1765393057716,6.5479,137.46,137.36,6.5521]
[1765393057915,0.05292676,137.42,137.4,0.05038487]
[1765393058718,103.39242676,137.42,137.3,101.9656]
[1765393058927,101.8729,137.43,137.31,101.9584]
[1765393059118,6.5489,137.43,137.33,108.4986]
[1765393059318,101.8604,137.45,137.33,108.4986]
[1765393059517,101.8452,137.47,137.35,101.9306]
[1765393059721,0.05321143,137.42,137.4,0.04862042]
[1765393060025,0.04734461,137.42,137.4,0.04862042]
[1765393063625,20.50293805,137.42,137.26,101.9956]
[1765393063922,101.9007,137.4,137.28,101.9823]
[1765393064422,101.8905,137.41,137.29,101.9752]
[1765393064620,120.87669344,137.42,137.3,101.9673]
[1765393064821,0.04862776,137.36,137.34,0.04754229]
[1765393065028,0.05563682,137.36,137.34,0.04754229]
[1765393065726,0.05563682,137.36,137.34,6.60064229]
[1765393066122,18.99559344,137.46,137.35,101.9293]
[1765393066528,6.5487,137.44,137.33,163.9434]
[1765393066718,6.5487,137.44,137.34,101.9381]
[1765393067125,0.04990964,137.4,137.38,0.05537498]
[1765393068024,101.8384,137.48,137.38,0.05537498]
[1765393068025,6.5467,137.48,137.39,101.9016]
[1765393068724,6.5457,137.5,137.39,101.9016]
[1765393068927,0.0479789,137.46,137.39,101.9016]
[1765393069133,0.0479789,137.46,137.43,0.04815664]
[1765393072036,0.0479789,137.46,137.35,101.9272]
[1765393072037,101.8574,137.45,137.34,101.9375]
[1765393072224,6.5492,137.43,137.35,6.5525]
[1765393072635,6.5492,137.43,137.34,101.9354]
[1765393073038,0.04777911,137.4,137.37,0.05234472]
[1765393073844,0.04777911,137.4,137.38,6.5509]
[1765393074040,6.5471,137.47,137.37,0.05234472]
[1765393074234,6.5471,137.47,137.37,101.9155]
[1765393074538,6.5471,137.47,137.39,6.5506]
[1765393074936,0.05078068,137.44,137.42,0.04712702]
[1765393075137,0.00078068,137.44,137.42,0.04712702]
[1765393075339,101.8006,137.53,137.42,0.04712702]
[1765393075637,105.57932046,137.54,137.42,101.8755]
[1765393075835,6.5453,137.51,137.44,6.5482]
[1765393076329,6.5453,137.51,137.46,0.05415599]
[1765393076731,101.8138,137.51,137.46,0.05415599]
[1765393077142,101.8082,137.52,137.46,0.05415599]
[1765393077336,101.7915,137.54,137.46,0.05415599]
[1765393077531,101.7982,137.53,137.46,0.05415599]
[1765393077729,101.7915,137.54,137.46,0.05415599]
[1765393078640,101.7767,137.56,137.46,0.05415599]
[1765393078842,101.7767,137.56,137.5,0.04632281]
[1765393079029,101.7572,137.59,137.5,0.04632281]
[1765393079228,101.7543,137.59,137.53,0.05399025]
[1765393079839,6.5428,137.56,137.53,0.05399025]
[1765393080041,101.7463,137.6,137.53,0.05399025]
[1765393080241,101.7628,137.58,137.53,0.05399025]
[1765393080437,6.5433,137.55,137.53,0.05399025]
[1765393080837,6.5433,137.55,137.42,105.66372046]
[1765393080838,101.7984,137.53,137.42,101.8759]
[1765393081032,105.57972046,137.54,137.42,101.8792]
[1765393081240,101.7807,137.56,137.45,101.8567]
[1765393081543,101.7858,137.55,137.43,101.8691]
[1765393081744,0.04903614,137.5,137.48,0.05566801]
[1765393081944,101.7858,137.55,137.48,0.05566801]
[1765393082134,6.5447,137.52,137.48,0.05566801]
[1765393082335,0.04840201,137.53,137.48,0.05566801]
[1765393082649,0.04840201,137.53,137.48,6.60196801]
[1765393082846,0.04840201,137.53,137.48,0.05566801]
[1765393083436,6.5448,137.52,137.48,0.05566801]
[1765393083938,0.04840201,137.53,137.48,0.05566801]
[1765393084341,101.8137,137.51,137.48,0.05566801]
[1765393084538,101.8137,137.51,137.39,101.901]
[1765393084739,6.5456,137.5,137.44,6.5482]
[1765393085045,101.8099,137.52,137.4,101.8906]
[1765393085550,0.04674177,137.47,137.45,0.04669998]
[1765393085847,101.7645,137.58,137.46,101.8464]
[1765393086254,101.7688,137.57,137.46,101.8464]
[1765393086446,101.7688,137.57,137.45,101.8524]
[1765393086651,6.5434,137.55,137.49,6.5459]
[1765393086848,0.05177801,137.53,137.51,0.04874861]
[1765393087054,0.04957986,137.53,137.51,0.05463619]
[1765393087247,6.59367986,137.53,137.51,0.05463619]
[1765393087658,6.5468,137.48,137.42,6.549]
[1765393087851,101.8071,137.52,137.4,101.8904]
[1765393088351,101.8071,137.52,137.44,6.5482]
[1765393088570,101.7832,137.55,137.44,101.8646]
[1765393088854,0.04711481,137.49,137.47,0.0475101]
[1765393089068,0.05049133,137.49,137.47,0.0475101]
[1765393089658,108.36783527,137.58,137.47,101.8869101]
[1765393089966,5.59809016,137.57,137.46,101.8492]
[1765393090267,6.5425,137.57,137.5,6.5453]
[1765393090664,101.7557,137.59,137.52,0.05599835]
[1765393090867,0.05371722,137.55,137.52,0.05599835]
[1765393091967,5.56316924,137.54,137.52,0.05599835]
[1765393092169,0.05371722,137.55,137.52,0.05599835]
[1765393092955,6.59701722,137.55,137.52,0.05599835]
[1765393093564,0.05371722,137.55,137.52,0.05599835]
[1765393094271,6.5438,137.54,137.52,0.05599835]
[1765393094471,5.46445656,137.53,137.44,6.5481]
[1765393094661,5.46445656,137.52,137.42,101.8781]
[1765393094862,6.60333527,137.58,137.49,101.827]
[1765393095061,6.60333527,137.62,137.53,6.5437]
[1765393095267,5.46028994,137.61,137.53,6.5437]
[1765393095465,0.05184493,137.58,137.56,0.04930164]
[1765393095665,0.05081523,137.58,137.56,0.04930164]
[1765393096372,6.59261523,137.58,137.56,0.04930164]
[1765393096577,0.05081523,137.58,137.56,0.04930164]
[1765393097868,3.52015491,137.63,137.56,0.04930164]
[1765393098165,5.39696969,137.62,137.56,0.04930164]
[1765393098473,5.39696969,137.61,137.56,6.59180164]
[1765393098667,10.05975491,137.63,137.56,6.59180164]
[1765393098869,0.0459613,137.61,137.56,6.59180164]
[1765393099377,101.7545,137.59,137.56,0.04930164]
[1765393099562,5.4000724,137.58,137.56,0.04930164]
[1765393099761,5.4000724,137.57,137.56,0.04930164]
[1765393100978,6.59455415,137.58,137.56,0.04930164]
[1765393101573,0.05265415,137.58,137.56,0.04930164]
[1765393101776,0.05265415,137.58,137.46,104.6242]
[1765393101976,101.7876,137.55,137.46,2.7778]
[1765393102159,5.32638438,137.54,137.46,2.7778]
[1765393102364,101.7705,137.57,137.46,2.7778]
[1765393102667,6.5439,137.54,137.46,2.7778]
[1765393102863,0.05003525,137.51,137.49,0.05065129]
[1765393107076,0.05003525,137.51,137.49,6.59645129]
[1765393107572,6.60333527,137.61,137.51,101.8109]
[1765393107776,6.60333527,137.61,137.5,101.8196]
[1765393107777,3.52015491,137.63,137.53,101.7969]
[1765393108280,6.54,137.62,137.55,6.543]
[1765393108485,6.54,137.62,137.54,101.7903]
[1765393108671,0.05477526,137.59,137.57,0.04878575]
[1765393108877,0.05477526,137.59,137.57,6.59088575]
[1765393109483,0.05477526,137.59,137.57,0.04878575]
[1765393113286,0.05477526,137.59,137.49,101.8242]
[1765393113487,101.745,137.61,137.49,101.8242]
[1765393113784,101.745,137.61,137.46,104.6207]
[1765393113785,6.5437,137.54,137.46,2.7778]
[1765393113975,101.7654,137.58,137.47,101.8417]
[1765393114179,0.049222,137.54,137.51,0.05437387]
[1765393118286,0.049222,137.54,137.52,6.5444]
[1765393118678,0.049222,137.54,137.51,0.05437387]
[1765393126096,0.049222,137.54,137.51,6.59927387]
[1765393126591,0.049222,137.54,137.51,0.05437387]
[1765393128700,0.049222,137.54,137.51,6.59937387]
[1765393129499,0.049222,137.54,137.52,6.5445]
[1765393130395,3.52015491,137.63,137.52,101.8036]
[1765393130587,5.41793634,137.62,137.52,101.8036]
[1765393130788,6.5408,137.6,137.55,6.5431]
[1765393131395,0.05227979,137.59,137.56,0.0511627]
[1765393131602,6.59357979,137.59,137.56,0.0511627]
[1765393133797,6.542,137.58,137.56,0.0511627]
[1765393134200,101.80947979,137.59,137.46,104.6252]
[1765393134396,6.5429,137.56,137.5,6.5454]
[1765393135203,0.05494414,137.54,137.52,0.04703442]
[1765393135596,0.05494414,137.54,137.52,6.59153442]
[1765393137192,0.05494414,137.54,137.52,0.04703442]
[1765393138003,6.59864414,137.54,137.52,0.04703442]
[1765393138306,0.05494414,137.54,137.52,0.04703442]
[1765393140697,0.05494414,137.54,137.52,6.59153442]
[1765393141300,6.5403,137.61,137.53,101.7951]
[1765393141507,101.7396,137.61,137.5,101.8131]
[1765393141702,101.7465,137.6,137.49,101.8258]
[1765393142005,6.5427,137.56,137.48,101.8333]
[1765393142401,0.05141464,137.53,137.51,0.04950168]
[1765393142609,0.05141464,137.53,137.51,6.59440168]
[1765393144605,0.05141464,137.53,137.51,0.04950168]
[1765393153710,6.59571464,137.53,137.51,0.04950168]
[1765393154508,103.31501464,137.53,137.46,2.7778]
[1765393154703,101.8057,137.52,137.46,2.7778]
[1765393154907,0.05141464,137.53,137.46,2.7778]
[1765393155419,0.05141464,137.53,137.48,0.05070747]
[1765393155611,0.05141464,137.53,137.48,6.59690747]
[1765393157109,0.05141464,137.53,137.48,0.05070747]
[1765393158721,0.05141464,137.53,137.48,101.88180747]
[1765393159020,0.05141464,137.53,137.48,0.05070747]
[1765393159406,0.05141464,137.53,137.5,6.5453]
[1765393159722,0.05141464,137.53,137.48,0.05070747]
[1765393160230,0.05141464,137.53,137.48,101.88140747]
[1765393160408,0.05141464,137.53,137.48,0.05070747]
[1765393161820,0.05141464,137.53,137.49,6.5459]
[1765393162020,101.7496,137.6,137.48,101.87990747]
[1765393162221,101.7496,137.6,137.48,101.8292]
[1765393162416,101.7576,137.59,137.47,101.8386]
[1765393162623,101.7693,137.57,137.46,2.7778]
[1765393162926,101.7496,137.6,137.48,101.8338]
[1765393163125,101.7496,137.6,137.53,0.05597536]
[1765393163126,0.05481299,137.55,137.53,0.05597536]
[1765393163422,0.04827198,137.55,137.53,0.05597536]
[1765393164229,3.52015491,137.63,137.56,6.5425]
[1765393164528,3.52015491,137.63,137.52,101.8019]
[1765393164718,3.52015491,137.63,137.54,101.7879]
[1765393165113,3.52015491,137.63,137.57,0.05271004]
[1765393165323,10.05965491,137.63,137.57,0.05271004]
[1765393165924,6.54,137.62,137.57,0.05271004]
[1765393166134,3.52015491,137.63,137.57,0.05271004]
[1765393166633,10.05965491,137.63,137.57,0.05271004]
[1765393167128,6.54,137.62,137.57,0.05271004]
[1765393168526,3.52015491,137.63,137.57,0.05271004]
[1765393168527,105.24745491,137.63,137.57,0.05271004]
[1765393168710,101.7421,137.61,137.57,0.05271004]
[1765393168913,101.7472,137.6,137.57,0.05271004]
[1765393169422,3.52015491,137.63,137.57,0.05271004]
[1765393170616,3.52015491,137.63,137.58,101.7603]
[1765393170826,101.6466,137.74,137.62,101.7273]
[1765393171130,101.6508,137.73,137.67,0.0490613]
[1765393171423,101.6232,137.77,137.67,0.0490613]
[1765393171618,101.6442,137.74,137.71,0.05161929]
[1765393171817,6.5351,137.72,137.71,0.04858916]
[1765393172228,101.6387,137.75,137.71,0.04858916]
[1765393172528,101.6282,137.76,137.71,0.04858916]
[1765393172928,6.5333,137.76,137.71,0.04858916]
[1765393173223,304.3775,137.99,137.71,0.04858916]
[1765393173541,1.26322667,137.9,137.54,123.5862]
[1765393173719,124.59292667,137.9,137.5,101.8167]
[1765393174030,23.06322667,137.9,137.51,101.8123]
[1765393174236,6.5307,137.82,137.6,62.0]
[1765393174421,0.04806976,137.72,137.7,0.04630527]
[1765393174733,0.04660575,137.72,137.7,0.04888029]
[1765393176020,0.04660575,137.72,137.6,62.0]
[1765393176225,6.5317,137.8,137.57,6.5421]
[1765393176821,6.5332,137.76,137.52,6.5442]
[1765393177022,0.05047235,137.65,137.63,0.04709944]
[1765393177322,0.04951635,137.65,137.63,0.05091468]
[1765393177523,6.5313,137.8,137.63,1.51091468]
[1765393177719,6.5313,137.8,137.55,181.5428]
[1765393178330,21.8,137.82,137.51,6.545]
[1765393178539,0.05018059,137.68,137.65,0.0461535]
[1765393178829,0.04735357,137.68,137.65,0.0459701]
[1765393181233,6.5322,137.79,137.65,0.0459701]
[1765393181527,6.5322,137.79,137.6,6.5404]
[1765393181734,6.5301,137.83,137.6,6.5404]
[1765393182430,6.5301,137.83,137.7,0.04908989]
[1765393182631,6.5301,137.83,137.75,0.04669026]
[1765393182837,6.5301,137.83,137.6,6.5404]
[1765393183330,6.5301,137.83,137.63,6.5391]
[1765393183727,0.04836777,137.74,137.72,0.05473796]
[1765393183930,0.04931011,137.74,137.72,0.0495859]
[1765393186935,6.5301,137.83,137.72,0.0495859]
[1765393186936,6.5281,137.87,137.72,1.5095859]
[1765393187136,6.5281,137.87,137.62,21.8]
[1765393187738,6.5281,137.87,137.65,28.3382]
[1765393187934,6.5261,137.91,137.75,0.05589995]
[1765393188138,1.26295161,137.9,137.82,0.05115594]
[1765393188335,1.26295161,137.9,137.85,0.00321887]
[1765393188635,1.26295161,137.9,137.62,21.8]
[1765393188836,6.5247,137.94,137.62,21.8]
[1765393189036,1.26276829,137.92,137.66,62.0]
[1765393189538,0.05299858,137.8,137.78,0.05412637]
[1765393189737,0.05527308,137.8,137.78,0.04993977]
[1765393191824,1.51527308,137.8,137.57,21.8]
[1765393192026,6.5285,137.86,137.55,28.3427]
[1765393192841,0.05364539,137.72,137.69,0.04920508]
[1765393193044,0.04658852,137.72,137.69,0.04978825]
[1765393198649,1.50658852,137.72,137.5,6.5455]
[1765393198951,21.8,137.79,137.51,21.8]
[1765393199547,0.04719699,137.66,137.64,0.04855872]
[1765393199747,0.05173938,137.66,137.64,0.05072545]
[1765393200559,21.8,137.79,137.64,0.05072545]
[1765393200847,176.0,137.83,137.5,21.8]
[1765393201051,28.3308,137.82,137.5,21.8]